{"text_format":"1","workbook":"xlsx","n_sheets":3,"sheets":["data","Salim","Final"],"not_rendered":{"charts":0,"images":0,"macros":1,"external_links":0,"defined_names":2,"comments":0,"pivot_tables":0},"unopened":[],"bounds":{"document_bytes":16777216,"sheet_cells":100000,"rows_first":2000,"rows_last":500,"rows_between":2000,"halvings":0,"cell_chars":16384,"cell_head_chars":4096},"cells_cut":0,"cells_raw":0,"read":"whole","date_system":"1900"}

{"sheet":"data","index":0,"n_rows":38,"n_cols":39,"rows_kept":38,"cut":false,"hidden":false,"merged":[]}
[null,null,null,null,null,null,null,null,null,null,null,null,null,null,null,null,null,null,null,null,null,null,null,null,null,null,null,null,null,null,null,null,null,null,null,"المرحلة السابقة","المرحلة بعد النجاح"]
[null,null,null,null,null,null,null,null,null,null,null,null,null,null,null,null,null,null,null,null,null,null,null,null,null,null,null,null,null,null,null,null,null,null,null,"الاول","الثاني"]
[null,null,null,null,null,null,null,null,null,null,null,null,null,null,null,null,null,null,null,null,null,null,null,null,null,null,null,null,null,null,null,null,null,null,null,"الثاني","الثالث"]
[null,null,null,null,null,null,null,null,null,null,null,null,null,null,null,null,null,null,null,null,null,null,null,null,null,null,null,null,null,null,null,null,null,null,null,"الثالث","الرابع"]
[null,null,null,null,null,null,null,null,null,null,null,null,null,null,null,null,null,null,null,null,null,null,null,null,null,null,null,null,null,null,null,null,null,null,null,"الرابع","الخامس"]
[null,null,null,null,null,null,null,null,null,null,null,null,null,null,null,null,null,null,null,null,null,null,null,null,null,null,null,null,null,null,null,null,null,null,null,"الخامس","السادس"]
[null,null,null,null,null,null,null,null,null,null,null,null,null,null,null,null,null,null,null,null,null,null,null,null,null,null,null,null,null,null,null,null,null,null,null,"السادس","يرحل للثانوي"]
[]
[]
[1,2,"Names",4,5,6,7,8,9,10,11,12,13,14,15,16,17,18,19,20,21,22,23,24,25,26,27,28,29,30,31,32,33,34,35,"المرحلة الحالية","النتيجة",null,"اسم الصورة"]
[null,null,"A11",null,null,null,null,null,null,null,null,null,null,null,null,null,null,null,null,null,null,null,null,null,null,null,null,null,null,null,null,null,null,null,null,"الاول","ناجح"]
[null,null,"A12",null,null,null,null,null,null,null,null,null,null,null,null,null,null,null,null,null,null,null,null,null,null,null,null,null,null,null,null,null,null,null,null,"الثاني","معيد"]
[null,null,"A13",null,null,null,null,null,null,null,null,null,null,null,null,null,null,null,null,null,null,null,null,null,null,null,null,null,null,null,null,null,null,null,null,"الثالث","له دور ثاني"]
[null,null,"A14",null,null,null,null,null,null,null,null,null,null,null,null,null,null,null,null,null,null,null,null,null,null,null,null,null,null,null,null,null,null,null,null,"الرابع","ناجح"]
[null,null,"A15",null,null,null,null,null,null,null,null,null,null,null,null,null,null,null,null,null,null,null,null,null,null,null,null,null,null,null,null,null,null,null,null,"الخامس","معيد"]
[null,null,"A16",null,null,null,null,null,null,null,null,null,null,null,null,null,null,null,null,null,null,null,null,null,null,null,null,null,null,null,null,null,null,null,null,"السادس","ناجح"]
[null,null,"A17",null,null,null,null,null,null,null,null,null,null,null,null,null,null,null,null,null,null,null,null,null,null,null,null,null,null,null,null,null,null,null,null,"الاول","ناجح"]
[null,null,"A18",null,null,null,null,null,null,null,null,null,null,null,null,null,null,null,null,null,null,null,null,null,null,null,null,null,null,null,null,null,null,null,null,"الثاني","معيد"]
[null,null,"A19",null,null,null,null,null,null,null,null,null,null,null,null,null,null,null,null,null,null,null,null,null,null,null,null,null,null,null,null,null,null,null,null,"الثالث","له دور ثاني"]
[null,null,"A20",null,null,null,null,null,null,null,null,null,null,null,null,null,null,null,null,null,null,null,null,null,null,null,null,null,null,null,null,null,null,null,null,"يرحل للثانوي","ناجح"]
[null,null,"A21",null,null,null,null,null,null,null,null,null,null,null,null,null,null,null,null,null,null,null,null,null,null,null,null,null,null,null,null,null,null,null,null,"الخامس","معيد"]
[null,null,"A22",null,null,null,null,null,null,null,null,null,null,null,null,null,null,null,null,null,null,null,null,null,null,null,null,null,null,null,null,null,null,null,null,"السادس","له دور ثاني"]
[null,null,"A23",null,null,null,null,null,null,null,null,null,null,null,null,null,null,null,null,null,null,null,null,null,null,null,null,null,null,null,null,null,null,null,null,"الاول","ناجح"]
[null,null,"A24",null,null,null,null,null,null,null,null,null,null,null,null,null,null,null,null,null,null,null,null,null,null,null,null,null,null,null,null,null,null,null,null,"الثاني","معيد"]
[null,null,"A25",null,null,null,null,null,null,null,null,null,null,null,null,null,null,null,null,null,null,null,null,null,null,null,null,null,null,null,null,null,null,null,null,"الاول","له دور ثاني"]
[null,null,"A26",null,null,null,null,null,null,null,null,null,null,null,null,null,null,null,null,null,null,null,null,null,null,null,null,null,null,null,null,null,null,null,null,"الثاني","ناجح"]
[null,null,"A27",null,null,null,null,null,null,null,null,null,null,null,null,null,null,null,null,null,null,null,null,null,null,null,null,null,null,null,null,null,null,null,null,"الثالث","معيد"]
[null,null,"A28",null,null,null,null,null,null,null,null,null,null,null,null,null,null,null,null,null,null,null,null,null,null,null,null,null,null,null,null,null,null,null,null,"الرابع","له دور ثاني"]
[null,null,"A29",null,null,null,null,null,null,null,null,null,null,null,null,null,null,null,null,null,null,null,null,null,null,null,null,null,null,null,null,null,null,null,null,"يرحل للثانوي","ناجح"]
[null,null,"A30",null,null,null,null,null,null,null,null,null,null,null,null,null,null,null,null,null,null,null,null,null,null,null,null,null,null,null,null,null,null,null,null,"السادس","معيد"]
[null,null,"A31",null,null,null,null,null,null,null,null,null,null,null,null,null,null,null,null,null,null,null,null,null,null,null,null,null,null,null,null,null,null,null,null,"الاول","له دور ثاني"]
[null,null,"A32",null,null,null,null,null,null,null,null,null,null,null,null,null,null,null,null,null,null,null,null,null,null,null,null,null,null,null,null,null,null,null,null,"الثاني","ناجح"]
[null,null,"A33",null,null,null,null,null,null,null,null,null,null,null,null,null,null,null,null,null,null,null,null,null,null,null,null,null,null,null,null,null,null,null,null,"الثالث","معيد"]
[null,null,"A34",null,null,null,null,null,null,null,null,null,null,null,null,null,null,null,null,null,null,null,null,null,null,null,null,null,null,null,null,null,null,null,null,"الرابع","له دور ثاني"]
[null,null,"A35",null,null,null,null,null,null,null,null,null,null,null,null,null,null,null,null,null,null,null,null,null,null,null,null,null,null,null,null,null,null,null,null,"الخامس","ناجح"]
[null,null,"A36",null,null,null,null,null,null,null,null,null,null,null,null,null,null,null,null,null,null,null,null,null,null,null,null,null,null,null,null,null,null,null,null,"السادس","معيد"]
[null,null,"A37",null,null,null,null,null,null,null,null,null,null,null,null,null,null,null,null,null,null,null,null,null,null,null,null,null,null,null,null,null,null,null,null,"الاول","له دور ثاني"]
[null,null,"A38",null,null,null,null,null,null,null,null,null,null,null,null,null,null,null,null,null,null,null,null,null,null,null,null,null,null,null,null,null,null,null,null,"الثاني","ناجح"]

{"sheet":"Salim","index":1,"n_rows":41,"n_cols":43,"rows_kept":41,"cut":false,"hidden":false,"merged":[]}
[null,null,null,null,null,null,null,null,null,null,null,null,null,null,null,null,null,null,null,null,null,null,null,null,null,null,null,null,null,null,null,null,null,null,null,"المرحلة السابقة","المرحلة بعد النجاح"]
[null,null,null,null,null,null,null,null,null,null,null,null,null,null,null,null,null,null,null,null,null,null,null,null,null,null,null,null,null,null,null,null,null,null,null,"الاول","الثاني"]
[null,null,null,null,null,null,null,null,null,null,null,null,null,null,null,null,null,null,null,null,null,null,null,null,null,null,null,null,null,null,null,null,null,null,null,"الثاني","الثالث"]
[null,null,null,null,null,null,null,null,null,null,null,null,null,null,null,null,null,null,null,null,null,null,null,null,null,null,null,null,null,null,null,null,null,null,null,"الثالث","الرابع"]
[null,null,null,null,null,null,null,null,null,null,null,null,null,null,null,null,null,null,null,null,null,null,null,null,null,null,null,null,null,null,null,null,null,null,null,"الرابع","الخامس"]
[null,null,null,null,null,null,null,null,null,null,null,null,null,null,null,null,null,null,null,null,null,null,null,null,null,null,null,null,null,null,null,null,null,null,null,"الخامس","السادس"]
[null,null,null,null,null,null,null,null,null,null,null,null,null,null,null,null,null,null,null,null,null,null,null,null,null,null,null,null,null,null,null,null,null,null,null,"السادس","يرحل للثانوي"]
[]
[]
[1,2,"Names",4,5,6,7,8,9,10,11,12,13,14,15,16,17,18,19,20,21,22,23,24,25,26,27,28,29,30,31,32,33,34,35,"المرحلة الحالية","النتيجة",null,"اسم الصورة",null,null,null,"معادلة"]
[1,"102201","A11","اسم الام1","الجد2","مقاطعة1","منال2","محمود1",null,null,null,null,null,null,null,null,null,null,null,null,null,null,null,null,null,null,null,null,null,45,48,51,54,57,60,"الاول","ناجح",null,null,null,null,null,{"$f":"IFERROR(IF(AK11=\"ناجح\",INDEX($AJ$2:$AK$7,MATCH(AJ11,$AJ$2:$AJ$7,0),2),AJ11),AJ11)","v":"الثاني"}]
[2,"102202","A12","اسم الام2","الجد3","مقاطعة2","منال3","محمود2",null,null,null,null,null,null,null,null,null,null,null,null,null,null,null,null,null,null,null,null,null,49,47,50,53,55,59,"الثاني","معيد",null,null,null,null,null,{"$f":"IFERROR(IF(AK12=\"ناجح\",INDEX($AJ$2:$AK$7,MATCH(AJ12,$AJ$2:$AJ$7,0),2),AJ12),AJ12)","v":"الثاني"}]
[3,"102203","A13","اسم الام3","الجد4","مقاطعة3","منال4","محمود3",null,null,null,null,null,null,null,null,null,null,null,null,null,null,null,null,null,null,null,null,null,53,46,49,52,53,58,"الثالث","له دور ثاني",null,null,null,null,null,"الثالث"]
[4,"102204","A14","اسم الام4","الجد5","مقاطعة4","منال5","محمود4",null,null,null,null,null,null,null,null,null,null,null,null,null,null,null,null,null,null,null,null,null,57,45,48,51,51,57,"الرابع","ناجح",null,null,null,null,null,"الخامس"]
[5,"102205","A15","اسم الام5","الجد6","مقاطعة5","منال6","محمود5",null,null,null,null,null,null,null,null,null,null,null,null,null,null,null,null,null,null,null,null,null,61,44,47,50,49,56,"الخامس","ناجح",null,null,null,null,null,"السادس"]
[6,"102206","A16","اسم الام6","الجد7","مقاطعة6","منال7","محمود6",null,null,null,null,null,null,null,null,null,null,null,null,null,null,null,null,null,null,null,null,null,65,43,46,49,47,55,"السادس","ناجح",null,null,null,null,null,"يرحل للثانوي"]
[7,"102207","A17","اسم الام7","الجد8","مقاطعة7","منال8","محمود7",null,null,null,null,null,null,null,null,null,null,null,null,null,null,null,null,null,null,null,null,null,69,42,45,48,45,54,"الاول","ناجح",null,null,null,null,null,"الثاني"]
[8,"102208","A18","اسم الام8","الجد9","مقاطعة8","منال9","محمود8",null,null,null,null,null,null,null,null,null,null,null,null,null,null,null,null,null,null,null,null,null,73,41,44,47,43,53,"الثاني","معيد",null,null,null,null,null,"الثاني"]
[9,"102209","A19","اسم الام9","الجد10","مقاطعة9","منال10","محمود9",null,null,null,null,null,null,null,null,null,null,null,null,null,null,null,null,null,null,null,null,null,77,40,43,46,41,52,"الثالث","له دور ثاني",null,null,null,null,null,"الثالث"]
[10,"102210","A20","اسم الام10","الجد11","مقاطعة10","منال11","محمود10",null,null,null,null,null,null,null,null,null,null,null,null,null,null,null,null,null,null,null,null,null,81,39,42,45,39,51,"الرابع","ناجح",null,null,null,null,null,"الخامس"]
[11,"102211","A21","اسم الام11","الجد12","مقاطعة11","منال12","محمود11",null,null,null,null,null,null,null,null,null,null,null,null,null,null,null,null,null,null,null,null,null,85,38,41,44,37,50,"الخامس","ناجح",null,null,null,null,null,"السادس"]
[12,"102212","A22","اسم الام12","الجد13","مقاطعة12","منال13","محمود12",null,null,null,null,null,null,null,null,null,null,null,null,null,null,null,null,null,null,null,null,null,89,37,40,43,35,49,"السادس","ناجح",null,null,null,null,null,"يرحل للثانوي"]
[13,"102213","A23","اسم الام13","الجد14","مقاطعة13","منال14","محمود13",null,null,null,null,null,null,null,null,null,null,null,null,null,null,null,null,null,null,null,null,null,93,36,39,42,33,48,"الاول","ناجح",null,null,null,null,null,"الثاني"]
[14,"102214","A24","اسم الام14","الجد15","مقاطعة14","منال15","محمود14",null,null,null,null,null,null,null,null,null,null,null,null,null,null,null,null,null,null,null,null,null,97,35,38,41,31,47,"الثاني","معيد",null,null,null,null,null,"الثاني"]
[15,"102215","A25","اسم الام15","الجد16","مقاطعة15","منال16","محمود15",null,null,null,null,null,null,null,null,null,null,null,null,null,null,null,null,null,null,null,null,null,101,34,37,40,29,46,"الثالث","له دور ثاني",null,null,null,null,null,"الثالث"]
[16,"102216","A26","اسم الام16","الجد17","مقاطعة16","منال17","محمود16",null,null,null,null,null,null,null,null,null,null,null,null,null,null,null,null,null,null,null,null,null,105,33,36,39,27,45,"الرابع","ناجح",null,null,null,null,null,"الخامس"]
[17,"102217","A27","اسم الام17","الجد18","مقاطعة17","منال18","محمود17",null,null,null,null,null,null,null,null,null,null,null,null,null,null,null,null,null,null,null,null,null,109,32,35,38,25,44,"الخامس","ناجح",null,null,null,null,null,"السادس"]
[18,"102218","A28","اسم الام18","الجد19","مقاطعة18","منال19","محمود18",null,null,null,null,null,null,null,null,null,null,null,null,null,null,null,null,null,null,null,null,null,113,31,34,37,23,43,"السادس","ناجح",null,null,null,null,null,"يرحل للثانوي"]
[19,"102219","A29","اسم الام19","الجد20","مقاطعة19","منال20","محمود19",null,null,null,null,null,null,null,null,null,null,null,null,null,null,null,null,null,null,null,null,null,117,30,33,36,21,42,"الاول","ناجح",null,null,null,null,null,"الثاني"]
[20,"102220","A30","اسم الام20","الجد21","مقاطعة20","منال21","محمود20",null,null,null,null,null,null,null,null,null,null,null,null,null,null,null,null,null,null,null,null,null,121,29,32,35,19,41,"الثاني","معيد",null,null,null,null,null,"الثاني"]
[21,"102221","A31","اسم الام21","الجد22","مقاطعة21","منال22","محمود21",null,null,null,null,null,null,null,null,null,null,null,null,null,null,null,null,null,null,null,null,null,125,28,31,34,17,40,"الثالث","له دور ثاني",null,null,null,null,null,"الثالث"]
[22,"102222","A32","اسم الام22","الجد23","مقاطعة22","منال23","محمود22",null,null,null,null,null,null,null,null,null,null,null,null,null,null,null,null,null,null,null,null,null,129,27,30,33,15,39,"الرابع","ناجح",null,null,null,null,null,"الخامس"]
[23,"102223","A33","اسم الام23","الجد24","مقاطعة23","منال24","محمود23",null,null,null,null,null,null,null,null,null,null,null,null,null,null,null,null,null,null,null,null,null,133,26,29,32,13,38,"الخامس","ناجح",null,null,null,null,null,"السادس"]
[24,"102224","A34","اسم الام24","الجد25","مقاطعة24","منال25","محمود24",null,null,null,null,null,null,null,null,null,null,null,null,null,null,null,null,null,null,null,null,null,137,25,28,31,11,37,"السادس","ناجح",null,null,null,null,null,"يرحل للثانوي"]
[25,"102225","A35","اسم الام25","الجد26","مقاطعة25","منال26","محمود25",null,null,null,null,null,null,null,null,null,null,null,null,null,null,null,null,null,null,null,null,null,141,24,27,30,9,36,"الاول","ناجح",null,null,null,null,null,"الثاني"]
[26,"102226","A36","اسم الام26","الجد27","مقاطعة26","منال27","محمود26",null,null,null,null,null,null,null,null,null,null,null,null,null,null,null,null,null,null,null,null,null,145,23,26,29,7,35,"الثاني","معيد",null,null,null,null,null,"الثاني"]
[27,"102227","A37","اسم الام27","الجد28","مقاطعة27","منال28","محمود27",null,null,null,null,null,null,null,null,null,null,null,null,null,null,null,null,null,null,null,null,null,149,22,25,28,5,34,"الثالث","له دور ثاني",null,null,null,null,null,"الثالث"]
[28,"102228","A38","اسم الام28","الجد29","مقاطعة28","منال29","محمود28",null,null,null,null,null,null,null,null,null,null,null,null,null,null,null,null,null,null,null,null,null,153,21,24,27,3,33,"الرابع","ناجح",null,null,null,null,null,"الخامس"]
[29,"102229","A39","اسم الام29","الجد30","مقاطعة29","منال30","محمود29",null,null,null,null,null,null,null,null,null,null,null,null,null,null,null,null,null,null,null,null,null,153,21,24,27,3,33,"الرابع","ناجح",null,null,null,null,null,"الخامس"]
[30,"102230","A40","اسم الام30","الجد31","مقاطعة30","منال31","محمود30",null,null,null,null,null,null,null,null,null,null,null,null,null,null,null,null,null,null,null,null,null,153,21,24,27,3,33,"الرابع","ناجح",null,null,null,null,null,"الخامس"]
[null,null,null,null,null,null,null,null,null,null,null,null,null,null,null,null,null,null,null,null,null,null,null,null,null,null,null,null,null,null,null,null,null,null,null,null,null,null,null,null,null,null,0]

{"sheet":"Final","index":2,"n_rows":40,"n_cols":39,"rows_kept":40,"cut":false,"hidden":false,"merged":[]}
[]
[]
[]
[]
[]
[]
[]
[]
[]
[1,2,null,4,5,6,7,8,9,10,11,12,13,14,15,16,17,18,19,20,21,22,23,24,25,26,27,28,29,30,31,32,33,34,35,null,"النتيجة",null,"اسم الصورة"]
[null,null,"A11",null,null,null,null,null,null,null,null,null,null,null,null,null,null,null,null,null,null,null,null,null,null,null,null,null,null,null,null,null,null,null,null,"الثاني"]
[null,null,"A12",null,null,null,null,null,null,null,null,null,null,null,null,null,null,null,null,null,null,null,null,null,null,null,null,null,null,null,null,null,null,null,null,"الثاني"]
[null,null,"A13",null,null,null,null,null,null,null,null,null,null,null,null,null,null,null,null,null,null,null,null,null,null,null,null,null,null,null,null,null,null,null,null,"الثالث"]
[null,null,"A14",null,null,null,null,null,null,null,null,null,null,null,null,null,null,null,null,null,null,null,null,null,null,null,null,null,null,null,null,null,null,null,null,"الخامس"]
[null,null,"A15",null,null,null,null,null,null,null,null,null,null,null,null,null,null,null,null,null,null,null,null,null,null,null,null,null,null,null,null,null,null,null,null,"السادس"]
[null,null,"A16",null,null,null,null,null,null,null,null,null,null,null,null,null,null,null,null,null,null,null,null,null,null,null,null,null,null,null,null,null,null,null,null,"يرحل للثانوي"]
[null,null,"A17",null,null,null,null,null,null,null,null,null,null,null,null,null,null,null,null,null,null,null,null,null,null,null,null,null,null,null,null,null,null,null,null,"الثاني"]
[null,null,"A18",null,null,null,null,null,null,null,null,null,null,null,null,null,null,null,null,null,null,null,null,null,null,null,null,null,null,null,null,null,null,null,null,"الثاني"]
[null,null,"A19",null,null,null,null,null,null,null,null,null,null,null,null,null,null,null,null,null,null,null,null,null,null,null,null,null,null,null,null,null,null,null,null,"الثالث"]
[null,null,"A20",null,null,null,null,null,null,null,null,null,null,null,null,null,null,null,null,null,null,null,null,null,null,null,null,null,null,null,null,null,null,null,null,"الخامس"]
[null,null,"A21",null,null,null,null,null,null,null,null,null,null,null,null,null,null,null,null,null,null,null,null,null,null,null,null,null,null,null,null,null,null,null,null,"السادس"]
[null,null,"A22",null,null,null,null,null,null,null,null,null,null,null,null,null,null,null,null,null,null,null,null,null,null,null,null,null,null,null,null,null,null,null,null,"يرحل للثانوي"]
[null,null,"A23",null,null,null,null,null,null,null,null,null,null,null,null,null,null,null,null,null,null,null,null,null,null,null,null,null,null,null,null,null,null,null,null,"الثاني"]
[null,null,"A24",null,null,null,null,null,null,null,null,null,null,null,null,null,null,null,null,null,null,null,null,null,null,null,null,null,null,null,null,null,null,null,null,"الثاني"]
[null,null,"A25",null,null,null,null,null,null,null,null,null,null,null,null,null,null,null,null,null,null,null,null,null,null,null,null,null,null,null,null,null,null,null,null,"الثالث"]
[null,null,"A26",null,null,null,null,null,null,null,null,null,null,null,null,null,null,null,null,null,null,null,null,null,null,null,null,null,null,null,null,null,null,null,null,"الخامس"]
[null,null,"A27",null,null,null,null,null,null,null,null,null,null,null,null,null,null,null,null,null,null,null,null,null,null,null,null,null,null,null,null,null,null,null,null,"السادس"]
[null,null,"A28",null,null,null,null,null,null,null,null,null,null,null,null,null,null,null,null,null,null,null,null,null,null,null,null,null,null,null,null,null,null,null,null,"يرحل للثانوي"]
[null,null,"A29",null,null,null,null,null,null,null,null,null,null,null,null,null,null,null,null,null,null,null,null,null,null,null,null,null,null,null,null,null,null,null,null,"الثاني"]
[null,null,"A30",null,null,null,null,null,null,null,null,null,null,null,null,null,null,null,null,null,null,null,null,null,null,null,null,null,null,null,null,null,null,null,null,"الثاني"]
[null,null,"A31",null,null,null,null,null,null,null,null,null,null,null,null,null,null,null,null,null,null,null,null,null,null,null,null,null,null,null,null,null,null,null,null,"الثالث"]
[null,null,"A32",null,null,null,null,null,null,null,null,null,null,null,null,null,null,null,null,null,null,null,null,null,null,null,null,null,null,null,null,null,null,null,null,"الخامس"]
[null,null,"A33",null,null,null,null,null,null,null,null,null,null,null,null,null,null,null,null,null,null,null,null,null,null,null,null,null,null,null,null,null,null,null,null,"السادس"]
[null,null,"A34",null,null,null,null,null,null,null,null,null,null,null,null,null,null,null,null,null,null,null,null,null,null,null,null,null,null,null,null,null,null,null,null,"يرحل للثانوي"]
[null,null,"A35",null,null,null,null,null,null,null,null,null,null,null,null,null,null,null,null,null,null,null,null,null,null,null,null,null,null,null,null,null,null,null,null,"الثاني"]
[null,null,"A36",null,null,null,null,null,null,null,null,null,null,null,null,null,null,null,null,null,null,null,null,null,null,null,null,null,null,null,null,null,null,null,null,"الثاني"]
[null,null,"A37",null,null,null,null,null,null,null,null,null,null,null,null,null,null,null,null,null,null,null,null,null,null,null,null,null,null,null,null,null,null,null,null,"الثالث"]
[null,null,"A38",null,null,null,null,null,null,null,null,null,null,null,null,null,null,null,null,null,null,null,null,null,null,null,null,null,null,null,null,null,null,null,null,"الخامس"]
[null,null,"A39",null,null,null,null,null,null,null,null,null,null,null,null,null,null,null,null,null,null,null,null,null,null,null,null,null,null,null,null,null,null,null,null,"الخامس"]
[null,null,"A40",null,null,null,null,null,null,null,null,null,null,null,null,null,null,null,null,null,null,null,null,null,null,null,null,null,null,null,null,null,null,null,null,"الخامس"]